[Event "Titled Tuesday Blitz April 25 Early 2023"]
[White "sebastianmarinp"]
[Black "Rodchenkov, Sergey D."]
[BlackFideId "4168712"]
[WhiteElo "2315"]
[BlackElo "2277"]
[Result "0-1"]
[Round "05"]
[TimeControl "180+2"]
[Date "2023.04.25"]
[WhiteClock "0:00:05"]
[BlackClock "0:01:14"]

1. e4 {[%clk 0:03:00]}  c5 {[%clk 0:03:00]} 2. Nf3 {[%clk 0:02:59]}  d6 {[%clk 0:03:00]} 3. d4 {[%clk 0:02:59]}  cxd4 {[%clk 0:03:01]} 4. Nxd4 {[%clk 0:03:00]}  Nf6 {[%clk 0:03:02]} 5. Nc3 {[%clk 0:03:00]}  a6 {[%clk 0:03:02]} 6. Be2 {[%clk 0:03:00]}  g6 {[%clk 0:02:59]} 7. O-O {[%clk 0:02:56]}  Bg7 {[%clk 0:02:59]} 8. Nb3 {[%clk 0:02:42]}  O-O {[%clk 0:02:59]} 9. Bg5 {[%clk 0:02:39]}  Nbd7 {[%clk 0:02:57]} 10. Kh1 {[%clk 0:02:35]}  h6 {[%clk 0:02:53]} 11. Be3 {[%clk 0:02:32]}  b5 {[%clk 0:02:49]} 12. f4 {[%clk 0:02:01]}  Bb7 {[%clk 0:02:02]} 13. Bf3 {[%clk 0:01:56]}  Rb8 {[%clk 0:02:02]} 14. a3 {[%clk 0:01:35]}  Qc7 {[%clk 0:02:01]} 15. Qd2 {[%clk 0:01:26]}  Rbc8 {[%clk 0:01:53]} 16. Rae1 {[%clk 0:01:23]}  Kh7 {[%clk 0:01:49]} 17. Bd4 {[%clk 0:01:18]}  e5 {[%clk 0:01:47]} 18. Be3 {[%clk 0:01:16]}  exf4 {[%clk 0:01:44]} 19. Bxf4 {[%clk 0:01:15]}  Ne5 {[%clk 0:01:44]} 20. Re2 {[%clk 0:00:44]}  Rfd8 {[%clk 0:01:45]} 21. Nd4 {[%clk 0:00:22]}  Nc4 {[%clk 0:01:36]} 22. Qc1 {[%clk 0:00:15]}  Ba8 {[%clk 0:01:26]} 23. Nd1 {[%clk 0:00:12]}  Ne5 {[%clk 0:01:23]} 24. c3 {[%clk 0:00:11]}  Nxf3 {[%clk 0:01:17]} 25. gxf3 {[%clk 0:00:12]}  Nh5 {[%clk 0:01:14]} 26. Bg3 {[%clk 0:00:05]}  Bxd4 {[%clk 0:01:14]} 0-1


[Site "https://www.chess.com"]

[Event "Titled Tuesday Blitz April 25 Early 2023"]
[White "Bilan, Danila"]
[Black "Sailer, Mike"]
[WhiteFideId "24161918"]
[BlackFideId "2012901"]
[WhiteElo "2182"]
[BlackElo "2109"]
[Result "1-0"]
[Round "05"]
[TimeControl "180+2"]
[Date "2023.04.25"]
[WhiteClock "0:00:06"]
[BlackClock "0:00:02"]

1. d4 {[%clk 0:02:49]}  d5 {[%clk 0:02:58]} 2. Nf3 {[%clk 0:02:49]}  Bf5 {[%clk 0:02:55]} 3. c4 {[%clk 0:02:49]}  e6 {[%clk 0:02:54]} 4. Nc3 {[%clk 0:02:49]}  Nc6 {[%clk 0:02:51]} 5. Bf4 {[%clk 0:02:36]}  Nf6 {[%clk 0:02:50]} 6. e3 {[%clk 0:02:31]}  Bb4 {[%clk 0:02:50]} 7. Qb3 {[%clk 0:02:25]}  a5 {[%clk 0:02:45]} 8. a3 {[%clk 0:02:04]}  a4 {[%clk 0:02:44]} 9. Qa2 {[%clk 0:02:03]}  Bxc3+ {[%clk 0:02:41]} 10. bxc3 {[%clk 0:02:03]}  O-O {[%clk 0:02:35]} 11. Be2 {[%clk 0:02:01]}  Ne4 {[%clk 0:02:27]} 12. Rc1 {[%clk 0:01:56]}  Na5 {[%clk 0:02:24]} 13. cxd5 {[%clk 0:01:32]}  exd5 {[%clk 0:02:24]} 14. Bd1 {[%clk 0:01:29]}  Nc4 {[%clk 0:02:01]} 15. Ne5 {[%clk 0:01:26]}  Nxe5 {[%clk 0:01:49]} 16. Bxe5 {[%clk 0:01:22]}  b5 {[%clk 0:01:46]} 17. O-O {[%clk 0:01:14]}  Ra6 {[%clk 0:01:40]} 18. Be2 {[%clk 0:01:07]}  Qd7 {[%clk 0:01:25]} 19. Qb2 {[%clk 0:00:55]}  Rb6 {[%clk 0:01:12]} 20. f3 {[%clk 0:00:48]}  Nd6 {[%clk 0:01:04]} 21. Qb4 {[%clk 0:00:34]}  Rfb8 {[%clk 0:00:44]} 22. Qc5 {[%clk 0:00:19]}  f6 {[%clk 0:00:38]} 23. Bf4 {[%clk 0:00:16]}  Ne8 {[%clk 0:00:32]} 24. g3 {[%clk 0:00:10]}  Rc6 {[%clk 0:00:23]} 25. Qb4 {[%clk 0:00:10]}  Re6 {[%clk 0:00:19]} 26. g4 {[%clk 0:00:09]}  Bg6 {[%clk 0:00:18]} 27. Rfe1 {[%clk 0:00:08]}  Rb7 {[%clk 0:00:11]} 28. Qc5 {[%clk 0:00:07]}  c6 {[%clk 0:00:11]} 29. Bf1 {[%clk 0:00:06]}  h6 {[%clk 0:00:11]} 30. Bg2 {[%clk 0:00:07]}  Kh7 {[%clk 0:00:10]} 31. h3 {[%clk 0:00:07]}  Bd3 {[%clk 0:00:11]} 32. e4 {[%clk 0:00:07]}  dxe4 {[%clk 0:00:10]} 33. fxe4 {[%clk 0:00:08]}  Bc4 {[%clk 0:00:09]} 34. Qf5+ {[%clk 0:00:07]}  Kg8 {[%clk 0:00:08]} 35. Qc5 {[%clk 0:00:08]}  Re7 {[%clk 0:00:08]} 36. e5 {[%clk 0:00:07]}  fxe5 {[%clk 0:00:08]} 37. Bxe5 {[%clk 0:00:08]}  Rf7 {[%clk 0:00:05]} 38. Bxc6 {[%clk 0:00:08]}  Qe6 {[%clk 0:00:01]} 39. Bxb7 {[%clk 0:00:07]}  Rxb7 {[%clk 0:00:01]} 40. Bg3 {[%clk 0:00:07]}  Rf7 {[%clk 0:00:02]} 41. Rxe6 {[%clk 0:00:06]} 1-0


[Site "https://www.chess.com"]

[Event "Titled Tuesday Blitz April 25 Early 2023"]
[White "Albornoz Cabrera, Carlos Daniel"]
[Black "Melikhov, Evgeny V."]
[WhiteFideId "3518736"]
[BlackFideId "4122046"]
[WhiteElo "2516"]
[BlackElo "2158"]
[Result "1-0"]
[Round "05"]
[TimeControl "180+2"]
[Date "2023.04.25"]
[WhiteClock "0:01:45"]
[BlackClock "0:00:08"]

1. e4 {[%clk 0:03:00]}  e5 {[%clk 0:02:59]} 2. Nf3 {[%clk 0:03:01]}  Nc6 {[%clk 0:03:00]} 3. Bc4 {[%clk 0:03:01]}  Nf6 {[%clk 0:03:00]} 4. d3 {[%clk 0:02:59]}  Be7 {[%clk 0:02:59]} 5. c3 {[%clk 0:02:58]}  O-O {[%clk 0:02:54]} 6. O-O {[%clk 0:02:59]}  d5 {[%clk 0:02:54]} 7. exd5 {[%clk 0:02:59]}  Nxd5 {[%clk 0:02:54]} 8. Re1 {[%clk 0:03:00]}  Nb6 {[%clk 0:02:49]} 9. Bb5 {[%clk 0:02:52]}  f6 {[%clk 0:02:48]} 10. d4 {[%clk 0:02:46]}  exd4 {[%clk 0:02:23]} 11. cxd4 {[%clk 0:02:47]}  a6 {[%clk 0:02:22]} 12. Bd3 {[%clk 0:02:32]}  Bg4 {[%clk 0:02:03]} 13. Be3 {[%clk 0:02:32]}  Bh5 {[%clk 0:01:51]} 14. Nc3 {[%clk 0:02:32]}  Nb4 {[%clk 0:01:36]} 15. Bf5 {[%clk 0:02:29]}  N4d5 {[%clk 0:01:27]} 16. Bd2 {[%clk 0:02:25]}  Bg6 {[%clk 0:01:20]} 17. Be6+ {[%clk 0:02:19]}  Bf7 {[%clk 0:01:19]} 18. Bxf7+ {[%clk 0:02:15]}  Rxf7 {[%clk 0:01:19]} 19. Qb3 {[%clk 0:02:15]}  Nxc3 {[%clk 0:01:04]} 20. bxc3 {[%clk 0:02:15]}  Qd5 {[%clk 0:01:00]} 21. Qxd5 {[%clk 0:02:15]}  Nxd5 {[%clk 0:00:59]} 22. c4 {[%clk 0:02:16]}  Nb4 {[%clk 0:00:25]} 23. Rxe7 {[%clk 0:02:15]}  Rxe7 {[%clk 0:00:24]} 24. Bxb4 {[%clk 0:02:15]}  Re2 {[%clk 0:00:23]} 25. Kf1 {[%clk 0:02:13]}  Rc2 {[%clk 0:00:22]} 26. c5 {[%clk 0:02:10]}  c6 {[%clk 0:00:21]} 27. Bd2 {[%clk 0:02:02]}  Rb2 {[%clk 0:00:14]} 28. Ke2 {[%clk 0:02:01]}  b5 {[%clk 0:00:14]} 29. cxb6 {[%clk 0:02:00]}  Rxb6 {[%clk 0:00:13]} 30. Kd3 {[%clk 0:02:00]}  Kf7 {[%clk 0:00:13]} 31. Rc1 {[%clk 0:01:59]}  Rc8 {[%clk 0:00:11]} 32. Rc5 {[%clk 0:01:52]}  Rb5 {[%clk 0:00:11]} 33. Rc1 {[%clk 0:01:47]}  c5 {[%clk 0:00:11]} 34. Be3 {[%clk 0:01:46]}  cxd4 {[%clk 0:00:10]} 35. Rxc8 {[%clk 0:01:46]}  dxe3 {[%clk 0:00:10]} 36. fxe3 {[%clk 0:01:45]}  Rb2 {[%clk 0:00:08]} 37. Rc7+ {[%clk 0:01:45]} 1-0


[Site "https://www.chess.com"]

[Event "Titled Tuesday Blitz April 25 Early 2023"]
[White "Vivas Zamora, Fabian Ernesto"]
[Black "Nouri, Alekhine"]
[WhiteFideId "3902480"]
[BlackFideId "5216184"]
[WhiteElo "2262"]
[BlackElo "2151"]
[Result "1-0"]
[Round "05"]
[TimeControl "180+2"]
[Date "2023.04.25"]
[WhiteClock "0:00:02"]
[BlackClock "0:00:11"]

1. e4 {[%clk 0:02:57]}  c5 {[%clk 0:02:59]} 2. Nf3 {[%clk 0:02:52]}  d6 {[%clk 0:02:59]} 3. d4 {[%clk 0:02:51]}  cxd4 {[%clk 0:03:00]} 4. Nxd4 {[%clk 0:02:52]}  Nf6 {[%clk 0:03:00]} 5. Nc3 {[%clk 0:02:53]}  a6 {[%clk 0:03:00]} 6. Be3 {[%clk 0:02:51]}  e5 {[%clk 0:03:00]} 7. Nb3 {[%clk 0:02:50]}  Be7 {[%clk 0:02:59]} 8. f3 {[%clk 0:02:49]}  h5 {[%clk 0:03:00]} 9. Be2 {[%clk 0:02:35]}  Be6 {[%clk 0:02:57]} 10. Nd5 {[%clk 0:02:28]}  Nxd5 {[%clk 0:02:55]} 11. exd5 {[%clk 0:02:29]}  Bf5 {[%clk 0:02:54]} 12. Qd2 {[%clk 0:02:17]}  Nd7 {[%clk 0:02:51]} 13. Na5 {[%clk 0:02:07]}  Qc7 {[%clk 0:02:49]} 14. c4 {[%clk 0:02:02]}  O-O {[%clk 0:02:48]} 15. Rc1 {[%clk 0:01:57]}  Rac8 {[%clk 0:02:27]} 16. O-O {[%clk 0:01:50]}  Bg6 {[%clk 0:02:22]} 17. b4 {[%clk 0:01:42]}  f5 {[%clk 0:02:00]} 18. c5 {[%clk 0:01:21]}  f4 {[%clk 0:01:58]} 19. Bf2 {[%clk 0:01:16]}  dxc5 {[%clk 0:01:59]} 20. d6 {[%clk 0:01:05]}  Bxd6 {[%clk 0:01:48]} 21. Rfd1 {[%clk 0:01:04]}  Rf6 {[%clk 0:01:45]} 22. Bh4 {[%clk 0:01:02]}  Rcf8 {[%clk 0:00:45]} 23. Bxf6 {[%clk 0:00:59]}  Rxf6 {[%clk 0:00:46]} 24. Qd5+ {[%clk 0:00:54]}  Bf7 {[%clk 0:00:45]} 25. Qxb7 {[%clk 0:00:53]}  Qd8 {[%clk 0:00:45]} 26. bxc5 {[%clk 0:00:51]}  Qxa5 {[%clk 0:00:43]} 27. cxd6 {[%clk 0:00:47]}  Be6 {[%clk 0:00:43]} 28. Rc8+ {[%clk 0:00:36]}  Kh7 {[%clk 0:00:42]} 29. Bd3+ {[%clk 0:00:31]}  g6 {[%clk 0:00:29]} 30. Rc7 {[%clk 0:00:29]}  Rf7 {[%clk 0:00:29]} 31. Qxa6 {[%clk 0:00:17]}  Qb4 {[%clk 0:00:25]} 32. Bc4 {[%clk 0:00:14]}  Nc5 {[%clk 0:00:20]} 33. Bxe6 {[%clk 0:00:06]}  Nxa6 {[%clk 0:00:19]} 34. Rxf7+ {[%clk 0:00:06]}  Kh6 {[%clk 0:00:20]} 35. d7 {[%clk 0:00:06]}  Qb6+ {[%clk 0:00:18]} 36. Kh1 {[%clk 0:00:06]}  Qd8 {[%clk 0:00:17]} 37. Re7 {[%clk 0:00:03]}  Nc7 {[%clk 0:00:17]} 38. Bf7 {[%clk 0:00:01]}  Qxe7 {[%clk 0:00:10]} 39. d8=Q {[%clk 0:00:01]}  Qxf7 {[%clk 0:00:11]} 40. Qh8+ {[%clk 0:00:02]}  Kg5 {[%clk 0:00:12]} 41. Qxe5+ {[%clk 0:00:02]}  Kh4 {[%clk 0:00:12]} 42. g3+ {[%clk 0:00:02]}  Kh3 {[%clk 0:00:11]} 43. Qe2 {[%clk 0:00:02]} 1-0


[Site "https://www.chess.com"]

[Event "Titled Tuesday Blitz April 25 Early 2023"]
[White "Chernobay, Artem"]
[Black "Omariev, Maksim"]
[WhiteFideId "4167406"]
[BlackFideId "4193423"]
[WhiteElo "2474"]
[BlackElo "2422"]
[Result "1-0"]
[Round "05"]
[TimeControl "180+2"]
[Date "2023.04.25"]
[WhiteClock "0:01:50"]
[BlackClock "0:01:32"]

1. e4 {[%clk 0:02:48]}  c5 {[%clk 0:02:58]} 2. Nf3 {[%clk 0:02:47]}  d6 {[%clk 0:02:58]} 3. d4 {[%clk 0:02:46]}  cxd4 {[%clk 0:02:59]} 4. Nxd4 {[%clk 0:02:47]}  Nf6 {[%clk 0:03:00]} 5. Nc3 {[%clk 0:02:47]}  a6 {[%clk 0:03:00]} 6. Bg5 {[%clk 0:02:45]}  Nbd7 {[%clk 0:03:00]} 7. f4 {[%clk 0:02:45]}  h6 {[%clk 0:03:01]} 8. Bxf6 {[%clk 0:02:44]}  Nxf6 {[%clk 0:03:02]} 9. e5 {[%clk 0:02:44]}  dxe5 {[%clk 0:02:56]} 10. fxe5 {[%clk 0:02:45]}  Nd5 {[%clk 0:02:56]} 11. e6 {[%clk 0:02:36]}  Nxc3 {[%clk 0:02:51]} 12. exf7+ {[%clk 0:02:30]}  Kxf7 {[%clk 0:02:52]} 13. Qf3+ {[%clk 0:02:22]}  Kg8 {[%clk 0:02:39]} 14. Bc4+ {[%clk 0:02:15]}  Kh7 {[%clk 0:02:20]} 15. bxc3 {[%clk 0:02:02]}  e5 {[%clk 0:02:01]} 16. Bd3+ {[%clk 0:01:55]}  Kg8 {[%clk 0:01:52]} 17. O-O {[%clk 0:01:50]}  Qc7 {[%clk 0:01:32]} 1-0


[Site "https://www.chess.com"]

[Event "Titled Tuesday Blitz April 25 Early 2023"]
[White "Bas Mas, Jose Joaquin"]
[Black "Shevtchenko, Olesya"]
[WhiteFideId "22219064"]
[BlackFideId "24131890"]
[WhiteElo "2233"]
[BlackElo "2003"]
[Result "1/2-1/2"]
[Round "05"]
[TimeControl "180+2"]
[Date "2023.04.25"]
[WhiteClock "0:00:14"]
[BlackClock "0:00:31"]

1. e4 {[%clk 0:03:00]}  c6 {[%clk 0:02:59]} 2. d4 {[%clk 0:03:00]}  d5 {[%clk 0:02:58]} 3. f3 {[%clk 0:03:01]}  e6 {[%clk 0:02:58]} 4. Nc3 {[%clk 0:03:01]}  b5 {[%clk 0:02:59]} 5. a3 {[%clk 0:02:56]}  b4 {[%clk 0:02:56]} 6. axb4 {[%clk 0:02:52]}  Bxb4 {[%clk 0:02:57]} 7. Nh3 {[%clk 0:02:51]}  Nf6 {[%clk 0:02:54]} 8. e5 {[%clk 0:02:50]}  Nfd7 {[%clk 0:02:53]} 9. f4 {[%clk 0:02:50]}  c5 {[%clk 0:02:51]} 10. Bd2 {[%clk 0:02:45]}  cxd4 {[%clk 0:02:31]} 11. Nb5 {[%clk 0:02:45]}  Bc5 {[%clk 0:02:32]} 12. b4 {[%clk 0:02:37]}  Be7 {[%clk 0:02:26]} 13. Bd3 {[%clk 0:02:33]}  Nc6 {[%clk 0:02:22]} 14. Nd6+ {[%clk 0:02:20]}  Bxd6 {[%clk 0:02:20]} 15. exd6 {[%clk 0:02:21]}  Nf6 {[%clk 0:02:09]} 16. b5 {[%clk 0:02:09]}  Nb8 {[%clk 0:01:58]} 17. O-O {[%clk 0:01:58]}  Qxd6 {[%clk 0:01:56]} 18. Qe1 {[%clk 0:01:54]}  Nbd7 {[%clk 0:01:52]} 19. Ng5 {[%clk 0:01:26]}  h6 {[%clk 0:01:44]} 20. Nf3 {[%clk 0:01:18]}  Qb6 {[%clk 0:01:44]} 21. Ba5 {[%clk 0:01:11]}  Qb7 {[%clk 0:01:30]} 22. f5 {[%clk 0:01:08]}  Nc5 {[%clk 0:01:26]} 23. fxe6 {[%clk 0:01:04]}  Bxe6 {[%clk 0:01:27]} 24. Nxd4 {[%clk 0:01:02]}  Nxd3 {[%clk 0:01:16]} 25. cxd3 {[%clk 0:01:01]}  O-O {[%clk 0:01:15]} 26. Nxe6 {[%clk 0:00:55]}  fxe6 {[%clk 0:01:16]} 27. Qxe6+ {[%clk 0:00:54]}  Qf7 {[%clk 0:01:15]} 28. Rae1 {[%clk 0:00:52]}  Rab8 {[%clk 0:01:10]} 29. Bc3 {[%clk 0:00:47]}  Qxe6 {[%clk 0:01:00]} 30. Rxe6 {[%clk 0:00:46]}  Rxb5 {[%clk 0:00:47]} 31. Bxf6 {[%clk 0:00:38]}  gxf6 {[%clk 0:00:48]} 32. Rexf6 {[%clk 0:00:37]}  Rxf6 {[%clk 0:00:49]} 33. Rxf6 {[%clk 0:00:38]}  Rb6 {[%clk 0:00:46]} 34. Rf5 {[%clk 0:00:36]}  Rd6 {[%clk 0:00:45]} 35. Kf2 {[%clk 0:00:36]}  Kg7 {[%clk 0:00:44]} 36. Ke3 {[%clk 0:00:36]}  Kg6 {[%clk 0:00:44]} 37. Rf8 {[%clk 0:00:37]}  Re6+ {[%clk 0:00:41]} 38. Kd4 {[%clk 0:00:37]}  Re2 {[%clk 0:00:41]} 39. Kxd5 {[%clk 0:00:29]}  Kg7 {[%clk 0:00:40]} 40. Ra8 {[%clk 0:00:29]}  Rxg2 {[%clk 0:00:40]} 41. Rxa7+ {[%clk 0:00:29]}  Kf6 {[%clk 0:00:40]} 42. h4 {[%clk 0:00:26]}  Rg4 {[%clk 0:00:38]} 43. Ra6+ {[%clk 0:00:24]}  Kg7 {[%clk 0:00:37]} 44. h5 {[%clk 0:00:23]}  Rg5+ {[%clk 0:00:37]} 45. Ke6 {[%clk 0:00:20]}  Rxh5 {[%clk 0:00:38]} 46. Ra7+ {[%clk 0:00:20]}  Kg6 {[%clk 0:00:38]} 47. d4 {[%clk 0:00:21]}  Rh1 {[%clk 0:00:37]} 48. d5 {[%clk 0:00:22]}  Re1+ {[%clk 0:00:38]} 49. Kd7 {[%clk 0:00:22]}  h5 {[%clk 0:00:38]} 50. Ra6+ {[%clk 0:00:22]}  Kg5 {[%clk 0:00:38]} 51. d6 {[%clk 0:00:21]}  h4 {[%clk 0:00:37]} 52. Ra2 {[%clk 0:00:20]}  Kg4 {[%clk 0:00:36]} 53. Kc8 {[%clk 0:00:20]}  Rc1+ {[%clk 0:00:36]} 54. Kd8 {[%clk 0:00:19]}  h3 {[%clk 0:00:36]} 55. d7 {[%clk 0:00:20]}  Kg3 {[%clk 0:00:34]} 56. Rd2 {[%clk 0:00:14]}  h2 {[%clk 0:00:29]} 57. Rxh2 {[%clk 0:00:12]}  Kxh2 {[%clk 0:00:30]} 58. Ke8 {[%clk 0:00:13]}  Re1+ {[%clk 0:00:30]} 59. Kf8 {[%clk 0:00:13]}  Rd1 {[%clk 0:00:30]} 60. Ke8 {[%clk 0:00:13]}  Rxd7 {[%clk 0:00:31]} 61. Kxd7 {[%clk 0:00:14]} 1/2-1/2


[Site "https://www.chess.com"]

[Event "Titled Tuesday Blitz April 25 Early 2023"]
[White "Lach, Aleksandra"]
[Black "Dzagnidze, Nana"]
[WhiteFideId "1134299"]
[BlackFideId "13601903"]
[WhiteElo "2111"]
[BlackElo "2406"]
[Result "0-1"]
[Round "05"]
[TimeControl "180+2"]
[Date "2023.04.25"]
[WhiteClock "0:00:02"]
[BlackClock "0:00:17"]

1. e4 {[%clk 0:02:57]}  c6 {[%clk 0:02:47]} 2. Bc4 {[%clk 0:02:51]}  d5 {[%clk 0:02:43]} 3. Bb3 {[%clk 0:02:51]}  dxe4 {[%clk 0:02:21]} 4. Qh5 {[%clk 0:02:50]}  g6 {[%clk 0:02:16]} 5. Qh4 {[%clk 0:02:47]}  Nf6 {[%clk 0:02:12]} 6. Nc3 {[%clk 0:02:33]}  Bf5 {[%clk 0:02:10]} 7. Nge2 {[%clk 0:02:13]}  Nbd7 {[%clk 0:02:01]} 8. Ng3 {[%clk 0:01:53]}  Nc5 {[%clk 0:02:00]} 9. Nxf5 {[%clk 0:01:52]}  gxf5 {[%clk 0:02:01]} 10. O-O {[%clk 0:01:38]}  Rg8 {[%clk 0:01:52]} 11. a4 {[%clk 0:01:16]}  e6 {[%clk 0:01:44]} 12. Bc4 {[%clk 0:01:08]}  Bd6 {[%clk 0:01:34]} 13. h3 {[%clk 0:00:55]}  Rg6 {[%clk 0:01:11]} 14. d3 {[%clk 0:00:45]}  exd3 {[%clk 0:01:10]} 15. cxd3 {[%clk 0:00:43]}  Qc7 {[%clk 0:01:00]} 16. f4 {[%clk 0:00:21]}  O-O-O {[%clk 0:00:58]} 17. Be3 {[%clk 0:00:21]}  Rdg8 {[%clk 0:00:55]} 18. Rf2 {[%clk 0:00:22]}  Be7 {[%clk 0:00:48]} 19. Re2 {[%clk 0:00:13]}  Ng4 {[%clk 0:00:43]} 20. Qg3 {[%clk 0:00:13]}  Nxe3 {[%clk 0:00:37]} 21. Qxe3 {[%clk 0:00:13]}  Nd7 {[%clk 0:00:37]} 22. d4 {[%clk 0:00:13]}  Bf6 {[%clk 0:00:36]} 23. Rd1 {[%clk 0:00:12]}  Rg3 {[%clk 0:00:36]} 24. Qf2 {[%clk 0:00:11]}  Bh4 {[%clk 0:00:36]} 25. Qf1 {[%clk 0:00:11]}  Rxh3 {[%clk 0:00:36]} 26. Rd3 {[%clk 0:00:09]}  Rxd3 {[%clk 0:00:33]} 27. Bxd3 {[%clk 0:00:10]}  Bg3 {[%clk 0:00:33]} 28. Qf3 {[%clk 0:00:10]}  Bxf4 {[%clk 0:00:33]} 29. Nd1 {[%clk 0:00:09]}  Nf6 {[%clk 0:00:31]} 30. Qh3 {[%clk 0:00:08]}  Kb8 {[%clk 0:00:24]} 31. Nf2 {[%clk 0:00:08]}  Bg3 {[%clk 0:00:22]} 32. Nh1 {[%clk 0:00:08]}  Qd6 {[%clk 0:00:20]} 33. Nxg3 {[%clk 0:00:04]}  Qxd4+ {[%clk 0:00:17]} 34. Kh2 {[%clk 0:00:03]}  Qxd3 {[%clk 0:00:17]} 35. Nf1 {[%clk 0:00:02]}  Qxe2 {[%clk 0:00:17]} 0-1


[Site "https://www.chess.com"]

[Event "Titled Tuesday Blitz April 25 Early 2023"]
[White "Luukkonen, Tommi"]
[Black "koncheto"]
[WhiteFideId "501808"]
[WhiteElo "2296"]
[BlackElo "2504"]
[Result "0-1"]
[Round "05"]
[TimeControl "180+2"]
[Date "2023.04.25"]
[WhiteClock "0:00:26"]
[BlackClock "0:00:21"]

1. e4 {[%clk 0:03:00]}  c5 {[%clk 0:02:56]} 2. Nf3 {[%clk 0:03:00]}  Nc6 {[%clk 0:02:56]} 3. Bb5 {[%clk 0:02:59]}  e6 {[%clk 0:02:54]} 4. O-O {[%clk 0:02:59]}  Nge7 {[%clk 0:02:55]} 5. Re1 {[%clk 0:02:56]}  g6 {[%clk 0:02:51]} 6. c3 {[%clk 0:02:55]}  Bg7 {[%clk 0:02:50]} 7. d4 {[%clk 0:02:55]}  cxd4 {[%clk 0:02:50]} 8. cxd4 {[%clk 0:02:56]}  d5 {[%clk 0:02:51]} 9. e5 {[%clk 0:02:57]}  O-O {[%clk 0:02:50]} 10. Nc3 {[%clk 0:02:56]}  a6 {[%clk 0:02:50]} 11. Bf1 {[%clk 0:02:54]}  b5 {[%clk 0:02:50]} 12. a4 {[%clk 0:02:53]}  b4 {[%clk 0:02:50]} 13. Ne2 {[%clk 0:02:54]}  a5 {[%clk 0:02:49]} 14. h4 {[%clk 0:02:53]}  Ba6 {[%clk 0:02:44]} 15. h5 {[%clk 0:02:51]}  Qb6 {[%clk 0:02:43]} 16. h6 {[%clk 0:02:15]}  Bh8 {[%clk 0:02:41]} 17. g3 {[%clk 0:02:11]}  Nf5 {[%clk 0:02:28]} 18. Be3 {[%clk 0:01:53]}  f6 {[%clk 0:02:18]} 19. Nf4 {[%clk 0:01:46]}  Bxf1 {[%clk 0:02:11]} 20. Kxf1 {[%clk 0:01:45]}  Rfe8 {[%clk 0:02:00]} 21. exf6 {[%clk 0:01:40]}  Bxf6 {[%clk 0:01:57]} 22. Ne5 {[%clk 0:01:36]}  Rac8 {[%clk 0:01:30]} 23. Kg2 {[%clk 0:01:17]}  Ncxd4 {[%clk 0:01:14]} 24. Ng4 {[%clk 0:01:08]}  Bh8 {[%clk 0:01:06]} 25. Nd3 {[%clk 0:00:50]}  Qc7 {[%clk 0:00:50]} 26. Bf4 {[%clk 0:00:45]}  Qc2 {[%clk 0:00:50]} 27. Be5 {[%clk 0:00:35]}  Qxd1 {[%clk 0:00:49]} 28. Raxd1 {[%clk 0:00:35]}  Rc2 {[%clk 0:00:48]} 29. Bxh8 {[%clk 0:00:33]}  Kxh8 {[%clk 0:00:48]} 30. Nf6 {[%clk 0:00:29]}  Rf8 {[%clk 0:00:43]} 31. Nd7 {[%clk 0:00:26]}  Rf7 {[%clk 0:00:31]} 32. N7e5 {[%clk 0:00:26]}  Rfc7 {[%clk 0:00:26]} 33. g4 {[%clk 0:00:26]}  Nxh6 {[%clk 0:00:21]} 0-1


[Site "https://www.chess.com"]

[Event "Titled Tuesday Blitz April 25 Early 2023"]
[White "Buscar, Michael"]
[Black "Belov, Alexei"]
[WhiteFideId "2603616"]
[BlackFideId "4128206"]
[WhiteElo "2010"]
[BlackElo "2500"]
[Result "0-1"]
[Round "05"]
[TimeControl "180+2"]
[Date "2023.04.25"]
[WhiteClock "0:02:00"]
[BlackClock "0:01:22"]

1. e4 {[%clk 0:02:59]}  e6 {[%clk 0:02:59]} 2. Nf3 {[%clk 0:02:59]}  d5 {[%clk 0:02:59]} 3. Nc3 {[%clk 0:02:59]}  Nf6 {[%clk 0:02:55]} 4. exd5 {[%clk 0:02:59]}  exd5 {[%clk 0:02:55]} 5. d4 {[%clk 0:02:59]}  c5 {[%clk 0:02:53]} 6. dxc5 {[%clk 0:02:58]}  Bxc5 {[%clk 0:02:53]} 7. Bb5+ {[%clk 0:02:54]}  Nc6 {[%clk 0:02:52]} 8. O-O {[%clk 0:02:54]}  O-O {[%clk 0:02:52]} 9. Bg5 {[%clk 0:02:53]}  Be6 {[%clk 0:02:50]} 10. Re1 {[%clk 0:02:43]}  a6 {[%clk 0:02:45]} 11. Bxc6 {[%clk 0:02:42]}  bxc6 {[%clk 0:02:45]} 12. Be3 {[%clk 0:02:43]}  Bd6 {[%clk 0:02:37]} 13. Nd4 {[%clk 0:02:42]}  Bd7 {[%clk 0:02:36]} 14. Nb3 {[%clk 0:02:33]}  Rb8 {[%clk 0:02:12]} 15. Na4 {[%clk 0:02:26]}  Ng4 {[%clk 0:01:57]} 16. h3 {[%clk 0:02:11]}  Nxe3 {[%clk 0:01:34]} 17. Rxe3 {[%clk 0:02:08]}  Qh4 {[%clk 0:01:24]} 18. Rb1 {[%clk 0:02:00]}  Qxa4 {[%clk 0:01:22]} 0-1


[Site "https://www.chess.com"]

[Event "Titled Tuesday Blitz April 25 Early 2023"]
[White "Tarasova, Viktoriya"]
[Black "Degenbaev, Aziz"]
[WhiteFideId "4175840"]
[BlackFideId "13802640"]
[WhiteElo "2182"]
[BlackElo "2152"]
[Result "0-1"]
[Round "05"]
[TimeControl "180+2"]
[Date "2023.04.25"]
[WhiteClock "0:00:01"]
[BlackClock "0:00:02"]

1. d4 {[%clk 0:03:00]}  Nf6 {[%clk 0:03:00]} 2. c4 {[%clk 0:03:00]}  g6 {[%clk 0:03:00]} 3. Nc3 {[%clk 0:02:59]}  Bg7 {[%clk 0:02:59]} 4. e4 {[%clk 0:02:59]}  d6 {[%clk 0:03:00]} 5. h3 {[%clk 0:02:59]}  O-O {[%clk 0:03:00]} 6. Be3 {[%clk 0:02:59]}  Nbd7 {[%clk 0:02:59]} 7. g4 {[%clk 0:02:59]}  e5 {[%clk 0:02:59]} 8. d5 {[%clk 0:02:59]}  Nc5 {[%clk 0:02:59]} 9. Qc2 {[%clk 0:02:59]}  a5 {[%clk 0:02:58]} 10. Be2 {[%clk 0:02:59]}  c6 {[%clk 0:02:58]} 11. O-O-O {[%clk 0:02:57]}  cxd5 {[%clk 0:02:55]} 12. cxd5 {[%clk 0:02:56]}  Bd7 {[%clk 0:02:49]} 13. g5 {[%clk 0:02:44]}  Ne8 {[%clk 0:02:48]} 14. Bb5 {[%clk 0:02:10]}  Rc8 {[%clk 0:02:41]} 15. Bxd7 {[%clk 0:01:56]}  Qxd7 {[%clk 0:02:42]} 16. Kb1 {[%clk 0:01:53]}  b5 {[%clk 0:02:40]} 17. Bxc5 {[%clk 0:01:50]}  Rxc5 {[%clk 0:02:39]} 18. Qd3 {[%clk 0:01:46]}  b4 {[%clk 0:02:38]} 19. Nce2 {[%clk 0:01:44]}  Nc7 {[%clk 0:02:34]} 20. Nf3 {[%clk 0:01:40]}  Rb8 {[%clk 0:02:24]} 21. Rc1 {[%clk 0:01:30]}  Nb5 {[%clk 0:02:04]} 22. Ka1 {[%clk 0:01:25]}  Nd4 {[%clk 0:01:49]} 23. Nfxd4 {[%clk 0:01:20]}  exd4 {[%clk 0:01:50]} 24. f4 {[%clk 0:01:17]}  a4 {[%clk 0:01:39]} 25. Rhd1 {[%clk 0:00:54]}  a3 {[%clk 0:01:37]} 26. b3 {[%clk 0:00:49]}  Rbc8 {[%clk 0:01:36]} 27. Kb1 {[%clk 0:00:49]}  Qe7 {[%clk 0:00:55]} 28. h4 {[%clk 0:00:45]}  Qd7 {[%clk 0:00:43]} 29. f5 {[%clk 0:00:43]}  Be5 {[%clk 0:00:37]} 30. h5 {[%clk 0:00:43]}  Qe7 {[%clk 0:00:33]} 31. f6 {[%clk 0:00:40]}  Qd7 {[%clk 0:00:33]} 32. hxg6 {[%clk 0:00:35]}  fxg6 {[%clk 0:00:30]} 33. Rh1 {[%clk 0:00:24]}  Qg4 {[%clk 0:00:30]} 34. f7+ {[%clk 0:00:20]}  Kh8 {[%clk 0:00:18]} 35. Rcf1 {[%clk 0:00:06]}  Rf8 {[%clk 0:00:16]} 36. Nxd4 {[%clk 0:00:04]}  Rc3 {[%clk 0:00:14]} 37. Qd2 {[%clk 0:00:04]}  Qxe4+ {[%clk 0:00:14]} 38. Nc2 {[%clk 0:00:04]}  Rf3 {[%clk 0:00:08]} 39. Qg2 {[%clk 0:00:01]}  Rxf1+ {[%clk 0:00:07]} 40. Qxf1 {[%clk 0:00:02]}  Kg7 {[%clk 0:00:03]} 41. Qh3 {[%clk 0:00:01]}  Kxf7 {[%clk 0:00:02]} 0-1


[Site "https://www.chess.com"]